[Event "*** Titled Tuesday Blitz"]
[Site "Chess.com"]
[Date "2019.12.03"]
[Round "3"]
[White "VladimirBelous"]
[Black "SmirnovAlexandrA"]
[Result "1-0"]
[WhiteElo "2733"]
[BlackElo "2382"]
[TimeControl "180+2"]
[EndTime "13:35:15 PST"]
[Termination "VladimirBelous won by resignation"]

1. c4 {[%clk 0:03:01.9]} 1... Nf6 {[%clk 0:03:00.2]} 2. g3 {[%clk 0:03:03.4]}
2... g6 {[%clk 0:02:53.4]} 3. Bg2 {[%clk 0:03:04.2]} 3... Bg7 {[%clk 0:02:54.9]}
4. Nf3 {[%clk 0:03:04.5]} 4... O-O {[%clk 0:02:56.3]} 5. O-O {[%clk 0:03:06.4]}
5... d6 {[%clk 0:02:57.3]} 6. d3 {[%clk 0:03:06.3]} 6... e5 {[%clk 0:02:57.2]}
7. Nc3 {[%clk 0:03:08.2]} 7... Nc6 {[%clk 0:02:55.4]} 8. Rb1 {[%clk 0:03:08.9]}
8... a5 {[%clk 0:02:55]} 9. a3 {[%clk 0:03:10.1]} 9... Ne8 {[%clk 0:02:44.7]}
10. b4 {[%clk 0:03:08.5]} 10... axb4 {[%clk 0:02:46.6]} 11. axb4 {[%clk
0:03:10.4]} 11... f5 {[%clk 0:02:46.3]} 12. b5 {[%clk 0:03:10.4]} 12... Ne7
{[%clk 0:02:46.4]} 13. Qb3 {[%clk 0:03:08.4]} 13... h6 {[%clk 0:02:36.6]} 14.
Bb2 {[%clk 0:02:50.9]} 14... Kh7 {[%clk 0:02:32.5]} 15. Ra1 {[%clk 0:02:52.2]}
15... Rxa1 {[%clk 0:02:30.3]} 16. Rxa1 {[%clk 0:02:54.1]} 16... Nf6 {[%clk
0:02:31.2]} 17. Ra8 {[%clk 0:02:52.1]} 17... g5 {[%clk 0:02:28.1]} 18. c5 {[%clk
0:02:44]} 18... Ng6 {[%clk 0:02:19.9]} 19. Nd2 {[%clk 0:02:01.9]} 19... Qe7
{[%clk 0:02:10.5]} 20. Ra7 {[%clk 0:01:59.5]} 20... dxc5 {[%clk 0:02:00.1]} 21.
Bxb7 {[%clk 0:01:59.2]} 21... Bxb7 {[%clk 0:01:56.6]} 22. Rxb7 {[%clk
0:02:01.1]} 22... Qd8 {[%clk 0:01:48.3]} 23. Na4 {[%clk 0:01:45.8]} 23... f4
{[%clk 0:01:26.9]} 24. Nxc5 {[%clk 0:01:43.2]} 24... fxg3 {[%clk 0:01:26]} 25.
hxg3 {[%clk 0:01:45.1]} 25... Ng4 {[%clk 0:01:20.5]} 26. Ne6 {[%clk 0:01:40.1]}
26... Qf6 {[%clk 0:01:15.6]} 27. Ne4 {[%clk 0:01:37.2]} 27... Qf5 {[%clk
0:01:11.5]} 28. Rxc7 {[%clk 0:01:36.5]} 28... Rg8 {[%clk 0:01:08.9]} 29. Rf7
{[%clk 0:01:32.7]} 1-0

[Event "*** Titled Tuesday Blitz"]
[Site "Chess.com"]
[Date "2019.12.03"]
[Round "3"]
[White "CzechmVIII"]
[Black "Ceejay271"]
[Result "1-0"]
[WhiteElo "2140"]
[BlackElo "2326"]
[TimeControl "180+2"]
[EndTime "13:35:19 PST"]
[Termination "CzechmVIII won by checkmate"]

1. e4 {[%clk 0:03:01.9]} 1... c5 {[%clk 0:03:00]} 2. Nf3 {[%clk 0:03:02.3]} 2...
Nc6 {[%clk 0:03:00.9]} 3. Nc3 {[%clk 0:03:03.1]} 3... d6 {[%clk 0:03:00.2]} 4.
d4 {[%clk 0:03:03.6]} 4... cxd4 {[%clk 0:03:01.8]} 5. Nxd4 {[%clk 0:03:05]} 5...
Nf6 {[%clk 0:03:03.3]} 6. Bc4 {[%clk 0:03:04.8]} 6... e6 {[%clk 0:03:04]} 7. Be3
{[%clk 0:03:05.2]} 7... Be7 {[%clk 0:03:04.7]} 8. Qe2 {[%clk 0:03:06.3]} 8... a6
{[%clk 0:03:06.2]} 9. O-O-O {[%clk 0:03:06.5]} 9... Qc7 {[%clk 0:03:07.7]} 10.
Bb3 {[%clk 0:03:06.4]} 10... Na5 {[%clk 0:03:09.3]} 11. g4 {[%clk 0:03:02.1]}
11... b5 {[%clk 0:03:10.7]} 12. g5 {[%clk 0:03:00.7]} 12... Nxb3+ {[%clk
0:03:12.3]} 13. axb3 {[%clk 0:03:01.2]} 13... Nd7 {[%clk 0:03:14.2]} 14. h4
{[%clk 0:02:59.4]} 14... b4 {[%clk 0:03:15.4]} 15. Na4 {[%clk 0:02:59.7]} 15...
Nc5 {[%clk 0:03:17.3]} 16. h5 {[%clk 0:02:57.5]} 16... Bd7 {[%clk 0:03:14.7]}
17. Kb1 {[%clk 0:02:54.8]} 17... Bxa4 {[%clk 0:03:06.3]} 18. bxa4 {[%clk
0:02:55.6]} 18... Nxa4 {[%clk 0:03:08.2]} 19. g6 {[%clk 0:02:50.6]} 19... Bf6
{[%clk 0:03:08.4]} 20. gxf7+ {[%clk 0:02:51.5]} 20... Kxf7 {[%clk 0:03:08]} 21.
Qg4 {[%clk 0:02:43]} 21... Rhe8 {[%clk 0:03:06.2]} 22. f4 {[%clk 0:02:35.8]}
22... Nxb2 {[%clk 0:02:55.4]} 23. e5 {[%clk 0:02:10.3]} 23... dxe5 {[%clk
0:02:55.9]} 24. fxe5 {[%clk 0:02:11]} 24... Qxe5 {[%clk 0:02:53]} 25. Bf4 {[%clk
0:01:38.7]} 25... Qa5 {[%clk 0:02:41.8]} 26. Nb3 {[%clk 0:00:53.2]} 26... Qa3
{[%clk 0:02:37.1]} 27. Rd7+ {[%clk 0:00:51.8]} 27... Kg8 {[%clk 0:02:30]} 28.
Bc1 {[%clk 0:00:42.8]} 28... a5 {[%clk 0:02:13.7]} 29. Rg1 {[%clk 0:00:42.7]}
29... Kh8 {[%clk 0:01:51.9]} 30. Rxg7 {[%clk 0:00:32.6]} 30... Rg8 {[%clk
0:01:52.3]} 31. Rxg8+ {[%clk 0:00:33.2]} 31... Rxg8 {[%clk 0:01:53.8]} 32. Qxg8#
{[%clk 0:00:34.2]} 1-0

[Event "*** Titled Tuesday Blitz"]
[Site "Chess.com"]
[Date "2019.12.03"]
[Round "3"]
[White "Eltaj_Safarli"]
[Black "oskariot"]
[Result "1-0"]
[WhiteElo "2994"]
[BlackElo "2696"]
[TimeControl "180+2"]
[EndTime "13:35:24 PST"]
[Termination "Eltaj_Safarli won by checkmate"]

1. e4 {[%clk 0:03:01.9]} 1... e6 {[%clk 0:03:01.1]} 2. d4 {[%clk 0:03:00.4]}
2... d5 {[%clk 0:03:02.4]} 3. Nd2 {[%clk 0:03:02.3]} 3... c5 {[%clk 0:03:03.3]}
4. Ngf3 {[%clk 0:03:02.6]} 4... Nf6 {[%clk 0:03:04.3]} 5. e5 {[%clk 0:03:02.8]}
5... Nfd7 {[%clk 0:03:04.8]} 6. c3 {[%clk 0:03:04.7]} 6... Nc6 {[%clk
0:03:05.9]} 7. Bd3 {[%clk 0:03:05.7]} 7... Be7 {[%clk 0:03:06.7]} 8. O-O {[%clk
0:03:06.8]} 8... Qb6 {[%clk 0:03:07.8]} 9. Re1 {[%clk 0:03:06.8]} 9... a5 {[%clk
0:03:08.4]} 10. a4 {[%clk 0:03:06.4]} 10... cxd4 {[%clk 0:02:54.9]} 11. cxd4
{[%clk 0:03:06.6]} 11... Nb4 {[%clk 0:02:46.3]} 12. Bb1 {[%clk 0:03:06.8]} 12...
Qa6 {[%clk 0:02:43.2]} 13. Ra3 {[%clk 0:03:06.2]} 13... Nb6 {[%clk 0:02:41.3]}
14. h4 {[%clk 0:03:06.4]} 14... Bd7 {[%clk 0:02:37.8]} 15. Rc3 {[%clk
0:03:06.8]} 15... Nxa4 {[%clk 0:02:31.7]} 16. Rce3 {[%clk 0:03:06.7]} 16... Rc8
{[%clk 0:02:26]} 17. Ng5 {[%clk 0:03:06.4]} 17... Bxg5 {[%clk 0:01:52.9]} 18.
hxg5 {[%clk 0:03:05.8]} 18... Qc6 {[%clk 0:01:48]} 19. Nf1 {[%clk 0:03:02.1]}
19... Nc2 {[%clk 0:01:30.3]} 20. Bxc2 {[%clk 0:03:02.7]} 20... Qxc2 {[%clk
0:01:32.2]} 21. Qh5 {[%clk 0:02:58.6]} 21... Qg6 {[%clk 0:00:55.4]} 22. Qh4
{[%clk 0:02:57.9]} 22... O-O {[%clk 0:00:54.1]} 23. Nh2 {[%clk 0:02:56]} 23...
Rc2 {[%clk 0:00:53.5]} 24. Rb3 {[%clk 0:02:52]} 24... Rfc8 {[%clk 0:00:49.3]}
25. Bf4 {[%clk 0:02:48.9]} 25... Rxb2 {[%clk 0:00:46.8]} 26. Ra3 {[%clk
0:02:46.8]} 26... Rb1 {[%clk 0:00:28.9]} 27. Bd2 {[%clk 0:02:43.4]} 27... Rxe1+
{[%clk 0:00:28.1]} 28. Bxe1 {[%clk 0:02:45.3]} 28... Rc1 {[%clk 0:00:28.7]} 29.
Re3 {[%clk 0:02:42.1]} 29... Nb2 {[%clk 0:00:17.8]} 30. Nf1 {[%clk 0:02:39.1]}
30... Nc4 {[%clk 0:00:17.9]} 31. Re2 {[%clk 0:02:40.2]} 31... Qd3 {[%clk
0:00:18.5]} 32. g6 {[%clk 0:02:38.4]} 32... Qxe2 {[%clk 0:00:10.2]} 33. Qd8+
{[%clk 0:02:36.9]} 33... Be8 {[%clk 0:00:11]} 34. Qxe8# {[%clk 0:02:38.8]} 1-0

[Event "*** Titled Tuesday Blitz"]
[Site "Chess.com"]
[Date "2019.12.03"]
[Round "3"]
[White "BillieKimbah"]
[Black "Gennady_Kozlov"]
[Result "0-1"]
[WhiteElo "2713"]
[BlackElo "2551"]
[TimeControl "180+2"]
[EndTime "13:35:32 PST"]
[Termination "Gennady_Kozlov won by resignation"]

1. d4 {[%clk 0:03:01.9]} 1... Nf6 {[%clk 0:02:59.1]} 2. c4 {[%clk 0:03:03]} 2...
e6 {[%clk 0:02:59.5]} 3. Nc3 {[%clk 0:03:03.9]} 3... Bb4 {[%clk 0:02:57.7]} 4.
f3 {[%clk 0:03:04.8]} 4... d5 {[%clk 0:02:57.4]} 5. a3 {[%clk 0:03:05.4]} 5...
Bxc3+ {[%clk 0:02:57.8]} 6. bxc3 {[%clk 0:03:06.1]} 6... O-O {[%clk 0:02:59.5]}
7. cxd5 {[%clk 0:03:03.5]} 7... exd5 {[%clk 0:03:00.1]} 8. e3 {[%clk 0:03:03.3]}
8... Bf5 {[%clk 0:02:59.7]} 9. Ne2 {[%clk 0:03:01.9]} 9... c6 {[%clk 0:02:59.9]}
10. g4 {[%clk 0:02:47.5]} 10... Bg6 {[%clk 0:02:59.7]} 11. h4 {[%clk 0:02:45.5]}
11... h6 {[%clk 0:02:57]} 12. Nf4 {[%clk 0:02:43.3]} 12... Re8 {[%clk
0:02:56.5]} 13. Ra2 {[%clk 0:02:38.5]} 13... Bh7 {[%clk 0:02:52]} 14. g5 {[%clk
0:02:38.1]} 14... Nfd7 {[%clk 0:02:48.8]} 15. gxh6 {[%clk 0:02:33.4]} 15... Qf6
{[%clk 0:02:45.6]} 16. Re2 {[%clk 0:01:26.7]} 16... Qxh6 {[%clk 0:02:43.4]} 17.
h5 {[%clk 0:01:16.9]} 17... Na6 {[%clk 0:02:29.7]} 18. Rg1 {[%clk 0:01:12.8]}
18... Nf6 {[%clk 0:02:27.2]} 19. e4 {[%clk 0:01:10.5]} 19... dxe4 {[%clk
0:02:26.8]} 20. Ne6 {[%clk 0:01:09.9]} 20... Qxh5 {[%clk 0:02:19.7]} 21. Nxg7
{[%clk 0:00:46.4]} 21... Qh4+ {[%clk 0:02:20.4]} 22. Rf2 {[%clk 0:00:43.2]}
22... Bg6 {[%clk 0:02:00.1]} 23. Nxe8 {[%clk 0:00:43.6]} 23... Rxe8 {[%clk
0:01:59.8]} 24. Bg5 {[%clk 0:00:17.9]} 24... exf3+ {[%clk 0:01:55.7]} 25. Be2
{[%clk 0:00:19.3]} 25... fxe2 {[%clk 0:01:51.4]} 26. Qd2 {[%clk 0:00:17]} 26...
Qxf2+ {[%clk 0:01:48.6]} 0-1

[Event "*** Titled Tuesday Blitz"]
[Site "Chess.com"]
[Date "2019.12.03"]
[Round "3"]
[White "tteshan"]
[Black "vpantev"]
[Result "0-1"]
[WhiteElo "2344"]
[BlackElo "2593"]
[TimeControl "180+2"]
[EndTime "13:35:35 PST"]
[Termination "vpantev won by resignation"]

1. d4 {[%clk 0:03:01.9]} 1... Nf6 {[%clk 0:02:54.4]} 2. c4 {[%clk 0:03:02.9]}
2... e6 {[%clk 0:02:55.1]} 3. Nc3 {[%clk 0:03:04.4]} 3... Bb4 {[%clk 0:02:55.2]}
4. e3 {[%clk 0:03:05.5]} 4... Nc6 {[%clk 0:02:54.5]} 5. Bd3 {[%clk 0:03:03.5]}
5... d6 {[%clk 0:02:52.8]} 6. Ne2 {[%clk 0:03:04.2]} 6... O-O {[%clk 0:02:52.4]}
7. a3 {[%clk 0:03:05.1]} 7... Bxc3+ {[%clk 0:02:53]} 8. Nxc3 {[%clk 0:03:06.7]}
8... e5 {[%clk 0:02:53.8]} 9. d5 {[%clk 0:03:03]} 9... Ne7 {[%clk 0:02:54.2]}
10. O-O {[%clk 0:03:02.9]} 10... c6 {[%clk 0:02:54]} 11. e4 {[%clk 0:02:56]}
11... Ng6 {[%clk 0:02:52.7]} 12. Bc2 {[%clk 0:02:42.1]} 12... cxd5 {[%clk
0:02:51.7]} 13. cxd5 {[%clk 0:02:40.9]} 13... Bd7 {[%clk 0:02:49.9]} 14. Bg5
{[%clk 0:02:39.4]} 14... h6 {[%clk 0:02:50.1]} 15. Bd2 {[%clk 0:02:34.1]} 15...
a6 {[%clk 0:02:49.6]} 16. Rc1 {[%clk 0:02:30.9]} 16... Rc8 {[%clk 0:02:45.3]}
17. Kh1 {[%clk 0:02:06.7]} 17... Bg4 {[%clk 0:02:31.6]} 18. f3 {[%clk
0:02:06.7]} 18... Bd7 {[%clk 0:02:32.4]} 19. Be3 {[%clk 0:02:06.8]} 19... Qe7
{[%clk 0:02:30.1]} 20. Qd2 {[%clk 0:02:05.5]} 20... Nh5 {[%clk 0:02:26.1]} 21.
g3 {[%clk 0:01:55.5]} 21... f5 {[%clk 0:02:13.4]} 22. exf5 {[%clk 0:01:51.1]}
22... Nh8 {[%clk 0:02:03.2]} 23. Ne4 {[%clk 0:01:43.6]} 23... Bxf5 {[%clk
0:01:53.2]} 24. g4 {[%clk 0:01:08.4]} 24... Bxe4 {[%clk 0:01:53.2]} 25. Bxe4
{[%clk 0:01:10.3]} 25... Nf4 {[%clk 0:01:44.8]} 26. Bh7+ {[%clk 0:01:07.8]}
26... Kxh7 {[%clk 0:01:41.1]} 27. Rxc8 {[%clk 0:00:51.3]} 27... Rxc8 {[%clk
0:01:41.2]} 28. Bxf4 {[%clk 0:00:52.5]} 28... exf4 {[%clk 0:01:41.9]} 29. Qd3+
{[%clk 0:00:53]} 29... Ng6 {[%clk 0:01:41.4]} 30. Qf5 {[%clk 0:00:47.2]} 30...
Rf8 {[%clk 0:01:40.6]} 0-1

[Event "*** Titled Tuesday Blitz"]
[Site "Chess.com"]
[Date "2019.12.03"]
[Round "3"]
[White "ferdipy"]
[Black "wild_cat99"]
[Result "0-1"]
[WhiteElo "2204"]
[BlackElo "2393"]
[TimeControl "180+2"]
[EndTime "13:35:39 PST"]
[Termination "wild_cat99 won by resignation"]

1. e4 {[%clk 0:03:01.9]} 1... c5 {[%clk 0:03:01]} 2. Nf3 {[%clk 0:03:01.3]} 2...
d6 {[%clk 0:03:02.1]} 3. d4 {[%clk 0:03:01.4]} 3... cxd4 {[%clk 0:03:04]} 4.
Nxd4 {[%clk 0:03:03.3]} 4... Nf6 {[%clk 0:03:05.9]} 5. Nc3 {[%clk 0:03:04.9]}
5... a6 {[%clk 0:03:07.4]} 6. Be3 {[%clk 0:03:06]} 6... e6 {[%clk 0:03:08.6]} 7.
g4 {[%clk 0:02:59.4]} 7... b5 {[%clk 0:03:08.6]} 8. a3 {[%clk 0:02:55.3]} 8...
Bb7 {[%clk 0:03:09.2]} 9. f3 {[%clk 0:02:55.5]} 9... Nfd7 {[%clk 0:03:09.2]} 10.
Rg1 {[%clk 0:02:54.4]} 10... Be7 {[%clk 0:03:08.7]} 11. Nde2 {[%clk 0:02:50]}
11... Nb6 {[%clk 0:03:06.6]} 12. b3 {[%clk 0:02:50.2]} 12... N8d7 {[%clk
0:03:06.3]} 13. Qd2 {[%clk 0:02:48.9]} 13... Rc8 {[%clk 0:03:01.6]} 14. g5
{[%clk 0:02:48]} 14... Ne5 {[%clk 0:02:56.2]} 15. Bg2 {[%clk 0:02:43.8]} 15...
h6 {[%clk 0:02:49.4]} 16. gxh6 {[%clk 0:02:41]} 16... Bh4+ {[%clk 0:02:50.4]}
17. Ng3 {[%clk 0:02:41]} 17... gxh6 {[%clk 0:02:48.7]} 18. Bxh6 {[%clk
0:02:33.8]} 18... Qf6 {[%clk 0:02:46.3]} 19. Bf4 {[%clk 0:02:31.1]} 19... Nec4
{[%clk 0:02:37.9]} 20. bxc4 {[%clk 0:02:14]} 20... Nxc4 {[%clk 0:02:38.3]} 21.
Qd3 {[%clk 0:01:27.2]} 21... Qxf4 {[%clk 0:02:37.9]} 22. Ne2 {[%clk 0:01:28]}
22... Qf6 {[%clk 0:02:27]} 23. Rb1 {[%clk 0:01:27.4]} 23... Bg5 {[%clk
0:02:26.6]} 24. a4 {[%clk 0:01:18.2]} 24... Bd2+ {[%clk 0:02:24.8]} 25. Kf2
{[%clk 0:01:16.8]} 25... Be3+ {[%clk 0:02:25.2]} 26. Ke1 {[%clk 0:01:06.5]}
26... Bxg1 {[%clk 0:02:24.9]} 27. Nxg1 {[%clk 0:01:07.7]} 27... Rxh2 {[%clk
0:02:23.8]} 28. Kf1 {[%clk 0:01:04.8]} 28... Qf4 {[%clk 0:02:16.5]} 29. N1e2
{[%clk 0:01:03.6]} 29... Ne3+ {[%clk 0:02:17.2]} 30. Ke1 {[%clk 0:00:51.5]}
30... Nxg2+ {[%clk 0:02:18.3]} 31. Kd1 {[%clk 0:00:52.4]} 31... Ne3+ {[%clk
0:02:15.9]} 32. Ke1 {[%clk 0:00:53.9]} 32... Qxf3 {[%clk 0:02:16.3]} 33. Qxd6
{[%clk 0:00:52]} 33... Rxe2+ {[%clk 0:02:00.3]} 34. Nxe2 {[%clk 0:00:52.6]}
34... Qf1+ {[%clk 0:02:01.3]} 35. Kd2 {[%clk 0:00:53.4]} 35... Nc4+ {[%clk
0:02:00.7]} 36. Kd3 {[%clk 0:00:50.9]} 36... Qf3+ {[%clk 0:01:57.9]} 37. Kd4
{[%clk 0:00:49.5]} 37... Nxd6 {[%clk 0:01:59.4]} 0-1

[Event "*** Titled Tuesday Blitz"]
[Site "Chess.com"]
[Date "2019.12.03"]
[Round "3"]
[White "MFBerna"]
[Black "Mikhail_Golubev"]
[Result "0-1"]
[WhiteElo "2351"]
[BlackElo "2596"]
[TimeControl "180+2"]
[EndTime "13:35:50 PST"]
[Termination "Mikhail_Golubev won by resignation"]

1. d4 {[%clk 0:03:01.5]} 1... Nf6 {[%clk 0:03:00.2]} 2. c4 {[%clk 0:03:03.4]}
2... g6 {[%clk 0:03:01]} 3. Nf3 {[%clk 0:03:04.8]} 3... Bg7 {[%clk 0:03:02.4]}
4. g3 {[%clk 0:03:06.3]} 4... O-O {[%clk 0:03:03.4]} 5. Bg2 {[%clk 0:03:07.8]}
5... d6 {[%clk 0:03:04.9]} 6. O-O {[%clk 0:03:09.1]} 6... Nc6 {[%clk 0:03:05.9]}
7. Nc3 {[%clk 0:03:09.4]} 7... Bf5 {[%clk 0:03:06.2]} 8. Bg5 {[%clk 0:03:00.4]}
8... Ne4 {[%clk 0:03:03]} 9. Nxe4 {[%clk 0:02:53.1]} 9... Bxe4 {[%clk
0:03:03.9]} 10. Be3 {[%clk 0:02:35.2]} 10... d5 {[%clk 0:03:03.1]} 11. c5 {[%clk
0:02:12.7]} 11... e6 {[%clk 0:02:57.7]} 12. Qd2 {[%clk 0:02:01.6]} 12... Bxf3
{[%clk 0:02:37.9]} 13. Bxf3 {[%clk 0:01:43]} 13... Qf6 {[%clk 0:02:38.7]} 14.
Rfd1 {[%clk 0:01:44.6]} 14... Rad8 {[%clk 0:02:39.2]} 15. Bg5 {[%clk 0:01:15.4]}
15... Qxd4 {[%clk 0:02:38.1]} 16. Bxd8 {[%clk 0:01:07.7]} 16... Rxd8 {[%clk
0:02:38.2]} 17. Qc2 {[%clk 0:00:59.4]} 17... Nb4 {[%clk 0:02:25.9]} 18. Qa4
{[%clk 0:00:45.7]} 18... Qxc5 {[%clk 0:02:17.9]} 19. Rac1 {[%clk 0:00:44.1]}
19... Qb6 {[%clk 0:02:18.4]} 20. e4 {[%clk 0:00:41.6]} 20... d4 {[%clk
0:02:16.6]} 21. e5 {[%clk 0:00:39.1]} 21... Bxe5 {[%clk 0:02:08.1]} 22. a3
{[%clk 0:00:40.1]} 22... Nd5 {[%clk 0:02:07.2]} 23. Bxd5 {[%clk 0:00:35.6]}
23... Rxd5 {[%clk 0:02:06.7]} 24. Qe8+ {[%clk 0:00:36.3]} 24... Kg7 {[%clk
0:02:07.7]} 25. b4 {[%clk 0:00:36.3]} 25... a5 {[%clk 0:02:01.5]} 26. f4 {[%clk
0:00:31.3]} 26... Bd6 {[%clk 0:01:54.6]} 27. bxa5 {[%clk 0:00:31.5]} 27... Rxa5
{[%clk 0:01:54.6]} 28. a4 {[%clk 0:00:31.7]} 28... d3+ {[%clk 0:01:48.4]} 29.
Kg2 {[%clk 0:00:32.6]} 29... Qe3 {[%clk 0:01:45.3]} 30. Rb1 {[%clk 0:00:28.1]}
30... Qe2+ {[%clk 0:01:43]} 31. Kh1 {[%clk 0:00:27.6]} 0-1

[Event "*** Titled Tuesday Blitz"]
[Site "Chess.com"]
[Date "2019.12.03"]
[Round "3"]
[White "Sunrise777"]
[Black "Parhamov"]
[Result "0-1"]
[WhiteElo "2708"]
[BlackElo "3097"]
[TimeControl "180+2"]
[EndTime "13:36:04 PST"]
[Termination "Parhamov won by resignation"]

1. d4 {[%clk 0:03:01.6]} 1... d5 {[%clk 0:02:56.7]} 2. c4 {[%clk 0:03:02.6]}
2... e6 {[%clk 0:02:56.9]} 3. Nc3 {[%clk 0:03:03.5]} 3... Bb4 {[%clk 0:02:57.1]}
4. Nf3 {[%clk 0:03:04.6]} 4... Nf6 {[%clk 0:02:57.9]} 5. g3 {[%clk 0:03:05.8]}
5... O-O {[%clk 0:02:58.7]} 6. Bg2 {[%clk 0:03:07.1]} 6... dxc4 {[%clk
0:02:59.8]} 7. O-O {[%clk 0:03:08.3]} 7... Nbd7 {[%clk 0:02:57.8]} 8. Qc2 {[%clk
0:03:08.9]} 8... a6 {[%clk 0:02:56.5]} 9. Nd2 {[%clk 0:03:03.4]} 9... c5 {[%clk
0:02:55.8]} 10. dxc5 {[%clk 0:03:02.6]} 10... Bxc5 {[%clk 0:02:56.2]} 11. Nxc4
{[%clk 0:03:01.8]} 11... Ra7 {[%clk 0:02:53.4]} 12. Bf4 {[%clk 0:02:45.3]} 12...
b5 {[%clk 0:02:54]} 13. Nd6 {[%clk 0:02:45.3]} 13... e5 {[%clk 0:02:39.7]} 14.
Nxc8 {[%clk 0:02:40]} 14... Qxc8 {[%clk 0:02:39.2]} 15. Bg5 {[%clk 0:01:37.7]}
15... b4 {[%clk 0:02:39.6]} 16. Bh3 {[%clk 0:01:34.2]} 16... bxc3 {[%clk
0:02:40.2]} 17. Bxf6 {[%clk 0:01:35.1]} 17... gxf6 {[%clk 0:02:40.9]} 18. Rad1
{[%clk 0:01:21.8]} 18... cxb2 {[%clk 0:02:38.1]} 19. Qf5 {[%clk 0:01:10.8]}
19... Rd8 {[%clk 0:02:26.2]} 20. Qg4+ {[%clk 0:00:42.3]} 20... Kh8 {[%clk
0:02:26.8]} 21. Qh4 {[%clk 0:00:42.9]} 21... Qb8 {[%clk 0:01:59.1]} 22. Rxd7
{[%clk 0:00:32.5]} 22... Rdxd7 {[%clk 0:01:50.7]} 23. Bf5 {[%clk 0:00:28.6]}
23... Qg8 {[%clk 0:01:41.7]} 24. Qxf6+ {[%clk 0:00:15.3]} 24... Qg7 {[%clk
0:01:42.7]} 25. Qc6 {[%clk 0:00:15.2]} 25... Rdc7 {[%clk 0:01:38.6]} 26. Qe8+
{[%clk 0:00:15.9]} 26... Bf8 {[%clk 0:01:39.1]} 0-1

[Event "*** Titled Tuesday Blitz"]
[Site "Chess.com"]
[Date "2019.12.03"]
[Round "3"]
[White "CaptainCasanova"]
[Black "nitpicker"]
[Result "1-0"]
[WhiteElo "2678"]
[BlackElo "2311"]
[TimeControl "180+2"]
[EndTime "13:36:07 PST"]
[Termination "CaptainCasanova won on time"]

1. e4 {[%clk 0:02:59.9]} 1... e6 {[%clk 0:03:00.1]} 2. d4 {[%clk 0:03:00.4]}
2... d5 {[%clk 0:02:59.2]} 3. Bd3 {[%clk 0:02:56]} 3... dxe4 {[%clk 0:02:43.4]}
4. Bxe4 {[%clk 0:02:57]} 4... Nf6 {[%clk 0:02:43.1]} 5. Bf3 {[%clk 0:02:58.4]}
5... c6 {[%clk 0:02:42.5]} 6. Ne2 {[%clk 0:02:57.9]} 6... Bd6 {[%clk 0:02:34.6]}
7. O-O {[%clk 0:02:59.1]} 7... Qc7 {[%clk 0:02:35.2]} 8. h3 {[%clk 0:02:59.6]}
8... b6 {[%clk 0:02:34]} 9. c4 {[%clk 0:02:58.1]} 9... Bb7 {[%clk 0:02:34.1]}
10. Nbc3 {[%clk 0:02:57.6]} 10... Nbd7 {[%clk 0:02:34.6]} 11. Bg5 {[%clk
0:02:57]} 11... h6 {[%clk 0:02:30.6]} 12. Bh4 {[%clk 0:02:57.4]} 12... O-O-O
{[%clk 0:02:22.9]} 13. Rc1 {[%clk 0:02:57.2]} 13... g5 {[%clk 0:02:14.8]} 14.
Bg3 {[%clk 0:02:58.1]} 14... Rdg8 {[%clk 0:02:12]} 15. Nb5 {[%clk 0:02:55.8]}
15... cxb5 {[%clk 0:02:06.6]} 16. cxb5 {[%clk 0:02:57.7]} 16... Bxg3 {[%clk
0:01:45.7]} 17. Nxg3 {[%clk 0:02:44.8]} 17... Nc5 {[%clk 0:01:40.6]} 18. dxc5
{[%clk 0:02:45.4]} 18... bxc5 {[%clk 0:01:34.8]} 19. b4 {[%clk 0:02:44.5]} 19...
c4 {[%clk 0:01:27.2]} 20. Qd4 {[%clk 0:02:41.7]} 20... e5 {[%clk 0:01:15.4]} 21.
Qxc4 {[%clk 0:02:42]} 21... Qxc4 {[%clk 0:01:16.4]} 22. Rxc4+ {[%clk 0:02:42.4]}
22... Kb8 {[%clk 0:01:17.8]} 23. Bxb7 {[%clk 0:02:42.5]} 23... Kxb7 {[%clk
0:01:17.7]} 24. Rc5 {[%clk 0:02:41.9]} 24... Nd7 {[%clk 0:01:09.9]} 25. Rd5
{[%clk 0:02:42.4]} 25... Rd8 {[%clk 0:00:44.9]} 26. Ne4 {[%clk 0:02:41.2]} 26...
f6 {[%clk 0:00:21.3]} 27. Rfd1 {[%clk 0:02:39.7]} 27... Kc7 {[%clk 0:00:20.6]}
28. Rc1+ {[%clk 0:02:33.1]} 28... Kb8 {[%clk 0:00:21.4]} 29. Rc6 {[%clk
0:02:32.8]} 29... f5 {[%clk 0:00:20]} 30. Ng3 {[%clk 0:02:21.8]} 30... f4 {[%clk
0:00:09.5]} 31. Nf5 {[%clk 0:02:21.2]} 31... h5 {[%clk 0:00:07.6]} 32. Ng7
{[%clk 0:02:10.1]} 32... Nb6 {[%clk 0:00:06]} 33. Rxe5 {[%clk 0:02:05.7]} 33...
g4 {[%clk 0:00:07.3]} 34. Nxh5 {[%clk 0:01:54]} 1-0

[Event "*** Titled Tuesday Blitz"]
[Site "Chess.com"]
[Date "2019.12.03"]
[Round "3"]
[White "beccrajoy"]
[Black "SCIM"]
[Result "0-1"]
[WhiteElo "1782"]
[BlackElo "2504"]
[TimeControl "180+2"]
[EndTime "13:36:12 PST"]
[Termination "SCIM won by checkmate"]

1. e4 {[%clk 0:03:01.9]} 1... e5 {[%clk 0:02:29.7]} 2. Nf3 {[%clk 0:03:01.9]}
2... Nc6 {[%clk 0:02:30.6]} 3. Bb5 {[%clk 0:03:03.5]} 3... a6 {[%clk 0:02:30.6]}
4. Ba4 {[%clk 0:03:05.1]} 4... Nf6 {[%clk 0:02:31]} 5. Qe2 {[%clk 0:03:04.4]}
5... b5 {[%clk 0:02:29]} 6. Bb3 {[%clk 0:03:05.2]} 6... Bc5 {[%clk 0:02:30.5]}
7. c3 {[%clk 0:03:03.1]} 7... O-O {[%clk 0:02:30.5]} 8. O-O {[%clk 0:02:57.8]}
8... Re8 {[%clk 0:02:28.8]} 9. d3 {[%clk 0:02:57.8]} 9... h6 {[%clk 0:02:28.3]}
10. Be3 {[%clk 0:02:56.7]} 10... Bf8 {[%clk 0:02:28.1]} 11. Rd1 {[%clk
0:02:56.8]} 11... d5 {[%clk 0:02:27.5]} 12. Nbd2 {[%clk 0:02:43.9]} 12... Bg4
{[%clk 0:02:18.4]} 13. exd5 {[%clk 0:02:38.4]} 13... Nxd5 {[%clk 0:02:18.3]} 14.
Nf1 {[%clk 0:02:33.7]} 14... Nf4 {[%clk 0:02:15]} 15. Qd2 {[%clk 0:02:00.3]}
15... Qf6 {[%clk 0:02:03.7]} 16. Bxf4 {[%clk 0:01:37.6]} 16... exf4 {[%clk
0:02:05.6]} 17. Bd5 {[%clk 0:01:29.6]} 17... Rad8 {[%clk 0:02:04.1]} 18. c4
{[%clk 0:01:21.9]} 18... Bb4 {[%clk 0:01:47.5]} 19. Qc2 {[%clk 0:00:58.9]} 19...
Rxd5 {[%clk 0:01:41.7]} 20. cxd5 {[%clk 0:00:48.7]} 20... Bxf3 {[%clk
0:01:40.5]} 21. dxc6 {[%clk 0:00:37.1]} 21... Qg5 {[%clk 0:01:23.8]} 22. g3
{[%clk 0:00:21.4]} 22... Re2 {[%clk 0:01:22.2]} 23. Qb3 {[%clk 0:00:17.7]} 23...
Bc5 {[%clk 0:01:22.3]} 24. d4 {[%clk 0:00:15.2]} 24... fxg3 {[%clk 0:01:12]} 25.
Qxf3 {[%clk 0:00:15.6]} 25... gxf2+ {[%clk 0:01:09.3]} 26. Kh1 {[%clk
0:00:10.4]} 26... Qg1# {[%clk 0:01:11.2]} 0-1